fUSD/lending_fUSD_20250117
["ID","MTS","AMOUNT","RATE_DAILY","PERIOD"]
[349389329,1737150638683,-754.16,0.00021,2]
[349389330,1737150638693,-10667432.79390515,0.00021,10]
[349389331,1737150638719,-811.899985,0.00021,10]
[349389336,1737150639725,-7197.84493044,0.00021,10]
[349389337,1737150639737,-2753.06750605,0.00021,10]
[349389338,1737150639748,-16550.01267482,0.00021,10]
[349389339,1737150639761,-300429.89805783,0.00021,10]
[349389340,1737150639772,-951.0,0.00021,10]
[349389341,1737150639786,-3151.84771964,0.00021,10]
[349389342,1737150639797,-538.32008026,0.00021,10]
[349389343,1737150639808,-980.44946021,0.00021,10]
[349389344,1737150639827,-2884.84977065,0.00021,10]
[349389345,1737150640448,-360.626445,0.00021,10]
[349389346,1737150640460,-6313.54565214,0.00021,10]
[349389347,1737150640544,-5851.33055015,0.00021,10]
[349389365,1737150641055,-1606.229472,0.00021,10]
[349389366,1737150641066,-396.21852322,0.00021,10]
[349389367,1737150641078,-1170.86539645,0.00021,10]
[349389368,1737150641089,-864.60574511,0.00021,10]
[349389369,1737150641159,-364.96708586,0.00021,10]
[349389370,1737150641172,-686.24633394,0.00021,10]
[349389371,1737150641182,-14596.45665,0.00021,10]
[349389372,1737150641194,-80000.0,0.00021,10]
[349389373,1737150641205,-85157.93815118,0.00021,10]
[349389377,1737150642730,-24214.01897577,0.00021,10]
[349389379,1737150642742,-9210.52416909,0.00021,10]
[349389381,1737150642801,-258.44283416,0.00021,10]
[349389382,1737150642812,-1118.24813042,0.00021,10]
[349389383,1737150642823,-931.13278959,0.00021,10]
[349389384,1737150642835,-1163.41768572,0.00021,10]
[349389385,1737150642847,-520.53,0.00021,10]
[349389386,1737150642858,-532.56122378,0.00021,10]
[349389387,1737150642874,-907.67604793,0.00021,10]
[349389388,1737150642886,-401.0,0.00021,10]
[349389389,1737150642897,-1749.75,0.00021,10]
[349389390,1737150642909,-1047.85371,0.00021,10]
[349389391,1737150642933,-6766.8835218,0.00021,10]
[349389392,1737150642958,-676928.21582926,0.00021,10]
[349389393,1737150642970,-1070.67872833,0.00021,10]
[349389394,1737150642982,-1098.0000002,0.00021,10]
[349389395,1737150643005,-300753.73858573,0.00021,10]
[349389396,1737150643016,-11004.33159885,0.00021,10]
[349389397,1737150643027,-526.50007605,0.00021,10]
[349389398,1737150643041,-22491.7547035,0.00021,10]
[349389402,1737150645657,-281771.84030652,0.00021,10]
[349389403,1737150645684,-7404.41532893,0.00021,10]
[349389404,1737150645695,-2153.718366,0.00021,10]
[349389405,1737150645709,-1085.5,0.00021,10]
[349389406,1737150645721,-451.11234823,0.00021,10]
[349389407,1737150645733,-21023.964,0.00021,10]
[349389408,1737150645787,-139486.55497846,0.00021,10]
[349389409,1737150645810,-869.26985999,0.00021,10]
[349389410,1737150645821,-22787.37970422,0.00021,10]
[349389411,1737150645909,-476.936999,0.00021,10]
[349389412,1737150645935,-2213.15629143,0.00021,10]
[349389413,1737150645960,-27113.78270218,0.00021,10]
[349389425,1737150856171,388.7,0.00010137,2]
[349389439,1737151635143,-500.0,0.00012329,2]
[349389440,1737151635302,-500.0,0.00012329,2]
[349389441,1737151635323,-298.35662646,0.00012329,2]
[349389442,1737151635344,-163.63,0.00012329,2]
[349389443,1737151635364,-208.31295194,0.0001648,2]
[349389446,1737151652132,-291.68704806,0.0001648,2]
[349389447,1737151652159,-43.15391507,0.0001648,2]
[349389453,1737151752105,-219.82,0.00016712,2]
[349389454,1737151752130,-388.7,0.00016813,2]
[349389455,1737151752152,-619.30607574,0.00017965,2]
[349389456,1737151753092,-266.95392426,0.00017965,2]
[349389457,1737151753114,-405.80358627,0.00019319,2]
[349389461,1737151765989,342.88,0.00010137,2]
[349389473,1737151831852,-342.88,0.00016813,2]
[349389474,1737151831862,-1400.91241373,0.00019319,2]
[349389475,1737151831879,-500.0,0.00019441,2]
[349389476,1737151831892,-500.0,0.00019458,2]
[349389477,1737151831902,-200.0,0.0001947,2]
[349389478,1737151831912,-1826.51886006,0.00019491,2]
[349389479,1737151832115,-4992.67113994,0.00019491,2]
[349389480,1737151832125,-893.78,0.00019495,2]
[349389481,1737151832135,-203.58,0.00019496,2]
[349389482,1737151832145,-6834.09,0.00019516,2]
[349389483,1737151832154,-167.61,0.0001956,2]
[349389484,1737151832164,-1000.0,0.00019651,2]
[349389485,1737151832174,-250.0,0.00019729,2]
[349389486,1737151832184,-12264.04149429,0.0002,2]
[349389487,1737151832194,-554.67015029,0.00020009,2]
[349389488,1737151832204,-167.5,0.00020046,2]
[349389489,1737151832214,-250.0,0.00020079,2]
[349389490,1737151832224,-669.47883399,0.00020108,2]
[349389491,1737151832235,-150.0,0.00020108,2]
[349389492,1737151832244,-21761.72,0.00020109,2]
[349389493,1737151832254,-201.58,0.00020109,2]
[349389494,1737151832264,-250.0,0.00020124,2]
[349389495,1737151832274,-528.76,0.00020179,2]
[349389496,1737151832283,-150.0,0.00020192,2]
[349389497,1737151832292,-800.0,0.000202,7]
[349389498,1737151832302,-190.51838149,0.00020229,2]
[349389499,1737151832315,-695.74161851,0.00020229,2]
[349389500,1737151832326,-150.0,0.00020234,2]
[349389501,1737151832335,-1700.0,0.000203,7]
[349389502,1737151832345,-772.56,0.00020323,2]
[349389503,1737151832355,-437.39,0.00020334,2]
[349389504,1737151832365,-2500.0,0.000204,7]
[349389505,1737151832375,-150.0,0.00020405,2]
[349389506,1737151832384,-150.0,0.00020428,2]
[349389507,1737151832394,-1713.5,0.0002045,2]
[349389508,1737151832404,-1000.0,0.0002046,2]
[349389509,1737151832413,-5702.71,0.000205,8]
[349389511,1737151832423,-18518.57,0.000205,8]
[349389513,1737151832432,-3400.0,0.000205,7]
[349389515,1737151832441,-150.0,0.00020537,2]
[349389517,1737151832451,-437.39,0.00020548,2]
[349389519,1737151832460,-437.39,0.00020548,2]
[349389521,1737151832470,-437.39,0.00020548,2]
[349389523,1737151832479,-150.0,0.00020557,2]
[349389525,1737151832489,-4200.0,0.000206,7]
[349389527,1737151832498,-1000.0,0.00020607,2]
[349389529,1737151832508,-150.0,0.00020657,2]
[349389531,1737151832517,-150.0,0.00020658,2]
[349389533,1737151832526,-150.0,0.000207,2]
[349389535,1737151832536,-800.0,0.000207,7]
[349389537,1737151832545,-150.0,0.00020772,2]
[349389539,1737151832558,-7302.95549996,0.0002079,2]
[349389542,1737151832574,-307.72865864,0.0002079,2]
[349389544,1737151832587,-3126.8,0.0002079,2]
[349389551,1737151832640,-2618.5158414,0.0002079,2]
[349389569,1737151832810,-3000.0,0.0002079,2]
[349389571,1737151832823,-150.0,0.00020795,2]
[349389574,1737151832841,-150.0,0.00020796,2]
[349389575,1737151832851,-772.56,0.000208,2]
[349389578,1737151832863,-772.56,0.000208,2]
[349389580,1737151832872,-4377.47086452,0.000208,2]
[349389582,1737151832882,-800.0,0.000208,7]
[349389584,1737151832891,-150.0,0.00020805,2]
[349389586,1737151832900,-554.68790407,0.00020899,2]
[349389588,1737151832910,-483.56083999,0.000209,2]
[349389590,1737151832919,-800.0,0.000209,7]
[349389592,1737151832928,-185.73316756,0.000209,2]
[349389594,1737151832937,-994.05151329,0.000209,2]
[349389595,1737151832946,-994.05151311,0.00020969,2]
[349389597,1737151832955,-500.64404719,0.00020973,2]
[349389600,1737151832965,-502.21299666,0.00020973,2]
[349389602,1737151832975,-155.93001098,0.00020973,2]
[349389604,1737151832985,-151.93793309,0.00020973,2]
[349389606,1737151832994,-160.92817232,0.00020973,2]
[349389608,1737151833004,-150.9329373,0.00020973,2]
[349389609,1737151833015,-161.9280533,0.00020973,2]
[349389611,1737151833024,-151.93497135,0.00020973,2]
[349389613,1737151833034,-306.1998961,0.00020973,2]
[349389615,1737151833043,-500.91261316,0.00020973,2]
[349389616,1737151833053,-572.80081496,0.00020973,2]
[349389617,1737151833063,-500.0,0.00020973,2]
[349389618,1737151833074,-471.99656535,0.00020973,2]
[349389619,1737151833084,-215.06590405,0.0002099,2]
[349389620,1737151833094,-500.0,0.00020999,2]
[349389621,1737151833103,-640605.08123243,0.00021,10]
[349389622,1737151833532,-2479.04336468,0.00021,10]
[349389623,1737151833544,-357.355385,0.00021,10]
[349389636,1737151837967,-11048.55300512,0.00021,10]
[349389637,1737151838073,-12311.62956835,0.00021,10]
[349389656,1737151839926,-492.77791423,0.00021,10]
[349389657,1737151840198,-2400.0,0.00021,10]
[349389675,1737151843052,-10456.0,0.00021,10]
[349389676,1737151843077,-437.39,0.00020548,2]
[349389677,1737151843087,-8222.08673663,0.00021,10]
[349389911,1737151845839,-204392.01414345,0.00021,10]
[349389944,1737151846153,-2995.17792419,0.00021,10]
[349391123,1737152103766,652.01738237,0.00023,120]
[349391130,1737152440598,500.000001,0.00023,120]
[349391133,1737152594488,500.0,0.00023,120]
[349391135,1737152601136,176.23,0.00010137,2]
[349391138,1737152726044,213.10698851,0.000108,2]
[349391140,1737152741556,935.91861347,0.00011,2]
[349391142,1737152834264,-1636.5480666,0.00011527,2]
[349391143,1737152842148,-397.51645755,0.00011527,2]
[349391144,1737152844771,500.0,0.00023,120]
[349391156,1737152953162,-2414.93547585,0.00011527,2]
[349391157,1737152953196,-400.0,0.000116,4]
[349391158,1737152953231,-605.98747015,0.000117,4]
[349391190,1737153032717,-294.01252985,0.000117,4]
[349391191,1737153032726,-1400.0,0.000118,4]
[349391192,1737153032736,-1800.0,0.000119,4]
[349391194,1737153032746,-178.74764836,0.000119,2]
[349391196,1737153032755,-500.0,0.00011973,2]
[349391198,1737153032764,-676.72354958,0.00011999,2]
[349391200,1737153032775,-76069.88228244,0.00012,2]
[349391203,1737153032794,-294.0,0.00012,2]
[349391205,1737153032804,-667088.87093644,0.00012,2]
[349391322,1737153038155,-9165.67651754,0.00012,2]
[349391323,1737153038167,-17815.0,0.00012,2]
[349391324,1737153038178,-1030.0,0.00012,2]
[349391325,1737153038189,-5000.0,0.00012,2]
[349391326,1737153038255,-52190.0,0.00012,2]
[349391341,1737153040094,-5755.96575606,0.00012,2]
[349391342,1737153040106,-540.94590033,0.00012,2]
[349391343,1737153040118,-621.17549966,0.00012,2]
[349391344,1737153040129,-486.7099531,0.00012,2]
[349391345,1737153040140,-426.040005,0.00012,2]
[349391346,1737153040152,-3047.62992868,0.00012,2]
[349391347,1737153040166,-675.99532,0.00012,2]
[349391348,1737153040231,-5015.84602746,0.00012,2]
[349391349,1737153040242,-10153.0,0.00012,2]
[349391350,1737153040254,-7025.61758418,0.00012,2]
[349391351,1737153040265,-10655.64528942,0.00012,2]
[349391368,1737153046065,-1759.05242015,0.00011973,2]
[349391369,1737153046075,-398090.58757985,0.00012,2]
[349394132,1737153562547,178.22,0.00010137,2]
[349394133,1737153569033,1434.825448,0.00011198,2]
[349394134,1737153619831,150.011807,0.00023,120]
[349394135,1737153621474,150.011807,0.00023,120]
[349394136,1737153621681,150.011807,0.00023,120]
[349394137,1737153622077,150.011807,0.00023,120]
[349394138,1737153622449,150.011807,0.00023,120]
[349394139,1737153622847,150.011807,0.00023,120]
[349394140,1737153623171,150.011807,0.00023,120]
[349394141,1737153623594,150.011807,0.00023,120]
[349394142,1737153624015,150.011807,0.00023,120]
[349394143,1737153689094,956.55029868,0.00011197,2]
[349394144,1737153694653,956.55029866,0.00011198,2]
[349394145,1737153699089,956.55029866,0.00011198,2]
[349394148,1737153726675,38460.46805402,0.00011185,2]
[349394149,1737154007165,-807.5608282,0.00011185,2]
[349394150,1737154032089,-1655.41852075,0.00011298,2]
[349394157,1737154034102,-1564.68703324,0.00011298,2]
[349394163,1737154146365,-1062.7495466,0.00011197,2]
[349394164,1737154146392,-1062.74954658,0.00011198,2]
[349394165,1737154146418,-188.87226377,0.00011198,2]
[349394166,1737154146445,-1062.74954658,0.00011198,2]
[349394167,1737154150106,-3048.62002491,0.00011298,2]
[349394172,1737154231578,1005.05,9.844e-05,2]
[349394181,1737154232292,-300.0,0.00011297,2]
[349394182,1737154232302,-1064.2744211,0.00011298,2]
[349394183,1737154232312,-720.5255789,0.00011298,2]
[349394184,1737154232331,-78936.7379644,0.00011298,2]
[349394185,1737154232341,-421.76103698,0.00011573,2]
[349394186,1737154232351,-1902.725,0.0001176,2]
[349394187,1737154232361,-346.91042057,0.00011879,2]
[349394188,1737154232371,-5797.71552672,0.0001188,2]
[349394189,1737154232380,-245.72896108,0.0001188,2]
[349394190,1737154232391,-174.71650596,0.000119,2]
[349394191,1737154232400,-500.0,0.00011973,2]
[349394192,1737154232409,-500.0,0.00011973,2]
[349394193,1737154232419,-500.0,0.00011973,2]
[349394194,1737154232428,-151.16142015,0.00011973,2]
[349394195,1737154232439,-160.91710768,0.00011973,2]
[349394196,1737154232449,-151.92177223,0.00011973,2]
[349394197,1737154232459,-150.92228692,0.00011973,2]
[349394198,1737154232468,-159.91793513,0.00011973,2]
[349394199,1737154232479,-151.93180556,0.00011973,2]
[349394200,1737154232488,-500.0,0.00011973,2]
[349394201,1737154232498,-408.01946202,0.00011973,2]
[349394202,1737154232508,-299.79199433,0.00011973,2]
[349394203,1737154232517,-150.93645611,0.00011973,2]
[349394204,1737154232527,-357.10085137,0.00011973,2]
[349394205,1737154232536,-500.0,0.00011973,2]
[349394206,1737154232545,-500.0,0.00011989,2]
[349394207,1737154232554,-600.0,0.00011999,2]
[349394208,1737154232563,-846665.32927565,0.00012,2]
[349394209,1737154232865,-31245.736696,0.00012,2]
[349394210,1737154232876,-1006.1552966,0.00012,2]
[349394211,1737154232909,-15535.0,0.00012,2]
[349394212,1737154232920,-6290.0000001,0.00012,2]
[349394213,1737154232932,-5880.0,0.00012,2]
[349394214,1737154232943,-675.0,0.00012,2]
[349394215,1737154232955,-10113.45633,0.00012,2]
[349394216,1737154233063,-9203.25639999,0.00012,2]
[349394217,1737154236606,-1353.11091382,0.00012,2]
[349394218,1737154236619,-7704.2232308,0.00012,2]
[349394222,1737154236757,-42887.27199623,0.00012,2]
[349394233,1737154238364,-50596.34423702,0.00012,2]
[349394234,1737154238376,-11047.6387814,0.00012,2]
[349394298,1737154240463,-2098.1833478,0.00012,2]
[349394299,1737154240599,-14041.67254212,0.00012,2]
[349394316,1737154243425,-398.64942686,0.00012,2]
[349394321,1737154243515,-89.72898088,0.00012,2]
[349394351,1737154246683,-1953.04,0.00012,2]
[349395421,1737154460788,455.13,0.00010137,2]
[349395425,1737154547440,151.25,0.000202,30]
[349395426,1737154809524,231.02420818,0.000202,30]
[349395427,1737154859918,-201.27629017,0.000118,2]
[349395428,1737154859949,-1541.53177096,0.00011873,2]
[349395429,1737154859981,-1541.53177096,0.00011899,2]
[349395430,1737154860016,-300.0,0.00011899,2]
[349395431,1737154860050,-155.54183765,0.000119,2]
[349395432,1737154860082,-500.0,0.00011973,2]
[349395433,1737154860114,-500.0,0.00011973,2]
[349395434,1737154860146,-500.0,0.00011973,2]
[349395435,1737154860177,-995.9933,0.00011999,2]
[349395436,1737154860199,-201.27629017,0.00012,2]
[349395437,1737154860211,-1541.53177096,0.00012,2]
[349395438,1737154860223,-1541.53177096,0.00012,2]
[349395439,1737154860235,-300.0,0.00012,2]
[349395440,1737154860247,-155.54183765,0.00012,2]
[349395441,1737154860262,-500.0,0.00012,2]
[349395442,1737154860286,-500.0,0.00012,2]
[349395443,1737154860302,-500.0,0.00012,2]
[349395444,1737154860318,-995.9933,0.00012,2]
[349395445,1737154860344,-7528.25006052,0.00012,2]
[349395450,1737155252143,-1668.8205818,0.00011873,2]
[349395451,1737155253634,-457.83506221,0.00011873,2]
[349395452,1737155350096,-421.76103696,0.00011709,2]
[349395453,1737155350116,-490.81530084,0.00011873,2]
[349395477,1737155431478,-1341.87937431,0.00011873,2]
[349395478,1737155431488,-1341.87937429,0.00011887,2]
[349395479,1737155431498,-155.54183765,0.000119,2]
[349395480,1737155431507,-1341.87937429,0.000119,2]
[349395481,1737155431517,-500.0,0.00011973,2]
[349395482,1737155431660,-500.0,0.00011973,2]
[349395483,1737155431670,-208336.07190597,0.00012,2]
[349395484,1737155431682,-250.0,0.00012,2]
[349395485,1737155431747,-1626.25748401,0.00012,2]
[349395486,1737155431759,-132969.59938661,0.00012,2]
[349395487,1737155431770,-56517.31060324,0.00012,2]
[349395488,1737155431875,-4232.92503026,0.00012,2]
[349395491,1737155437587,-1073.32697681,0.00012,2]
[349395492,1737155437599,-142204.41323472,0.00012,2]
[349395493,1737155437609,-5000.3875836,0.00012,2]
[349395494,1737155437621,-24322.12706774,0.00012,2]
[349395495,1737155437634,-9433.10782252,0.00012,2]
[349395496,1737155437655,-1977.72,0.00012,2]
[349395497,1737155437762,-10051.6969912,0.00012,2]
[349395498,1737155437773,-199921.17193822,0.00012,2]
[349395499,1737155437782,-3000.0,0.00012,2]
[349395500,1737155437791,-23900.0,0.00012158,2]
[349395501,1737155437800,-163.63,0.00012329,2]
[349395502,1737155437809,-665.7375982,0.0001241,2]
[349395503,1737155437819,-1000.0,0.00012521,2]
[349395504,1737155437828,-500.0,0.00012521,2]
[349395505,1737155437837,-156.2,0.00012675,2]
[349395506,1737155437846,-156.2,0.00012697,2]
[349395507,1737155437855,-156.2,0.00012718,2]
[349395508,1737155437864,-156.2,0.00012739,2]
[349395509,1737155437873,-961.6085486,0.000129,7]
[349395510,1737155437882,-500.0,0.00013397,2]
[349395511,1737155437891,-1030.79,0.00013501,2]
[349395512,1737155437900,-1000.0,0.00013522,2]
[349395513,1737155437909,-500.0,0.00013814,2]
[349395514,1737155437920,-13512.0,0.00014221,2]
[349395515,1737155437928,-430.0,0.00014329,2]
[349395516,1737155437939,-1766.28,0.00014779,2]
[349395518,1737155437949,-250.0,0.0001484,2]
[349395520,1737155437958,-13651.72950221,0.00014888,2]
[349395522,1737155437968,-6765.7888902,0.000149,2]
[349395524,1737155437977,-1955.93989319,0.00015,2]
[349395526,1737155437986,-18103.76589509,0.00015,2]
[349395528,1737155437995,-14882.99608009,0.00015,2]
[349395530,1737155438005,-1614.72744609,0.00015,2]
[349395532,1737155438014,-1000.0,0.00015119,2]
[349395534,1737155438024,-500.0,0.00015278,2]
[349395535,1737155438033,-168.61,0.00015285,2]
[349395537,1737155438042,-651.92,0.00015313,2]
[349395540,1737155438052,-250.0,0.0001545,2]
[349395541,1737155438061,-300.0,0.00015485,2]
[349395543,1737155438071,-727.16,0.00015515,2]
[349395545,1737155438080,-1766.28,0.00015518,2]
[349395547,1737155438089,-1826.52,0.00015534,2]
[349395549,1737155438098,-171.61,0.00015577,2]
[349395551,1737155438108,-500.0,0.00015586,2]
[349395553,1737155438117,-250.0,0.00015742,2]
[349395555,1737155438126,-1030.79,0.00015765,2]
[349395558,1737155438135,-581.48,0.00015853,2]
[349395560,1737155438145,-1000.0,0.00015918,2]
[349395562,1737155438154,-198.22,0.00015994,2]
[349395563,1737155438163,-198.22,0.00015998,2]
[349395575,1737155438172,-198.22,0.00016002,2]
[349395578,1737155438290,-198.22,0.00016006,2]
[349395580,1737155438299,-198.22,0.00016011,2]
[349395582,1737155438309,-198.22,0.00016015,2]
[349395584,1737155438318,-198.22,0.00016019,2]
[349395586,1737155438328,-198.22,0.00016023,2]
[349395588,1737155438337,-198.22,0.00016028,2]
[349395590,1737155438347,-1817.51,0.00016028,2]
[349395592,1737155438356,-198.22,0.00016032,2]
[349395594,1737155438366,-198.22,0.00016036,2]
[349395596,1737155438376,-198.22,0.0001604,2]
[349395598,1737155438385,-198.22,0.00016044,2]
[349395600,1737155438395,-198.22,0.00016049,2]
[349395602,1737155438404,-198.22,0.00016053,2]
[349395604,1737155438413,-198.22,0.00016057,2]
[349395606,1737155438423,-198.22,0.00016061,2]
[349395608,1737155438432,-198.22,0.00016066,2]
[349395610,1737155438442,-198.22,0.0001607,2]
[349395612,1737155438451,-198.22,0.00016074,2]
[349395614,1737155438461,-1293.25,0.00016117,2]
[349395616,1737155438470,-4445.7,0.00016184,2]
[349395618,1737155438480,-200.0,0.00016195,2]
[349395620,1737155438489,-1766.28,0.00016257,2]
[349395622,1737155438499,-200.0,0.00016337,2]
[349395624,1737155438508,-200.0,0.00016339,2]
[349395626,1737155438518,-520.74,0.00016643,2]
[349395628,1737155438527,-175.77,0.00016712,2]
[349395630,1737155438537,-227.27,0.00016798,2]
[349395632,1737155438547,-455.13,0.00016813,2]
[349395634,1737155438556,-1766.28,0.00016996,2]
[349395636,1737155438566,-3000.0,0.00017,2]
[349395638,1737155438575,-1000.0,0.00017009,2]
[349395640,1737155438585,-194.93,0.00017331,2]
[349395642,1737155438595,-1766.28,0.00017735,2]
[349395644,1737155438604,-581.48,0.00017834,2]
[349395646,1737155438613,-401.05540385,0.00018,3]
[349395648,1737155438622,-10904.39301361,0.00018,2]
[349395650,1737155438632,-1030.79,0.00018029,2]
[349395652,1737155438641,-336.33,0.00018082,2]
[349395654,1737155438650,-437.39,0.00018082,2]
[349395656,1737155438659,-437.39,0.00018082,2]
[349395658,1737155438668,-874.78,0.00018082,2]
[349395660,1737155438680,-437.39,0.00018082,2]
[349395662,1737155438689,-437.39,0.00018082,2]
[349395664,1737155438698,-437.39,0.00018082,2]
[349395666,1737155438707,-437.39,0.00018082,2]
[349395668,1737155438716,-437.39,0.00018082,2]
[349395670,1737155438726,-437.39,0.00018082,2]
[349395672,1737155438738,-437.39,0.00018082,2]
[349395674,1737155438747,-437.39,0.00018082,2]
[349395676,1737155438756,-437.39,0.00018082,2]
[349395678,1737155438766,-437.39,0.00018082,2]
[349395680,1737155438775,-1945.0,0.000182,2]
[349395682,1737155438784,-1030.26,0.00018356,2]
[349395684,1737155438793,-150.0,0.00018575,2]
[349395686,1737155438802,-150.0,0.00018575,2]
[349395688,1737155438811,-150.0,0.00018575,2]
[349395690,1737155438820,-194.92,0.000186,2]
[349395692,1737155438829,-520.74,0.00018724,2]
[349395694,1737155438838,-336.33,0.00018751,2]
[349395696,1737155438847,-1000.0,0.00018899,2]
[349395698,1737155438856,-2223.042,0.000193,2]
[349395700,1737155438866,-301.04,0.00019397,2]
[349395702,1737155438875,-336.33,0.0001942,2]
[349395704,1737155438884,-1188.95480705,0.000196,2]
[349395706,1737155438893,-1188.9548068,0.000196,2]
[349395708,1737155438902,-1188.9548068,0.000196,2]
[349395710,1737155438911,-1188.9548068,0.000196,2]
[349395712,1737155438922,-1188.9548068,0.000196,2]
[349395714,1737155438931,-1188.9548068,0.000196,2]
[349395716,1737155438943,-1188.9548068,0.000196,2]
[349395719,1737155438961,-1188.9548068,0.000196,2]
[349395722,1737155438976,-1188.9548068,0.000196,2]
[349395725,1737155438995,-1188.9548068,0.000196,2]
[349395728,1737155439014,-1188.9548068,0.000196,2]
[349395730,1737155439029,-1188.9548068,0.000196,2]
[349395733,1737155439046,-1188.9548068,0.000196,2]
[349395736,1737155439066,-1188.9548068,0.000196,2]
[349395739,1737155439085,-1188.9548068,0.000196,2]
[349395742,1737155439104,-1188.9548068,0.000196,2]
[349395745,1737155439121,-1188.9548068,0.000196,2]
[349395748,1737155439138,-1188.9548068,0.000196,2]
[349395750,1737155439152,-1188.9548068,0.000196,2]
[349395753,1737155439172,-1188.9548068,0.000196,2]
[349395756,1737155439189,-1188.9548068,0.000196,2]
[349395759,1737155439208,-1188.9548068,0.000196,2]
[349395761,1737155439220,-150.0,0.00019726,2]
[349395764,1737155439236,-150.0,0.00019726,2]
[349395769,1737155439256,-300.0,0.00019726,2]
[349395771,1737155439271,-150.0,0.00019726,2]
[349395774,1737155439287,-300.0,0.00019726,2]
[349395777,1737155439303,-150.0,0.00019726,2]
[349395779,1737155439318,-150.0,0.00019726,2]
[349395782,1737155439332,-150.0,0.00019726,2]
[349395784,1737155439347,-150.0,0.00019726,2]
[349395787,1737155439363,-300.77,0.00019726,2]
[349395790,1737155439379,-301.07,0.00019726,2]
[349395792,1737155439394,-150.0,0.00019726,2]
[349395795,1737155439408,-150.0,0.00019726,2]
[349395797,1737155439424,-150.0,0.00019726,2]
[349395800,1737155439439,-150.0,0.00019726,2]
[349395802,1737155439454,-150.0,0.00019726,2]
[349395805,1737155439471,-150.0,0.00019726,2]
[349395807,1737155439487,-1188.9548068,0.00019728,2]
[349395810,1737155439503,-581.48,0.00019816,2]
[349395814,1737155439518,-262.22,0.00019857,2]
[349395817,1737155439534,-262.22,0.00019862,2]
[349395820,1737155439550,-262.22,0.00019868,2]
[349395823,1737155439568,-262.22,0.00019873,2]
[349395826,1737155439585,-262.22,0.00019878,2]
[349395829,1737155439602,-262.22,0.00019883,2]
[349395832,1737155439619,-262.22,0.00019888,2]
[349395834,1737155439636,-533.61,0.0001989,14]
[349395837,1737155439652,-262.22,0.00019894,2]
[349395839,1737155439667,-262.22,0.00019899,2]
[349395842,1737155439683,-262.22,0.00019904,2]
[349395845,1737155439699,-262.22,0.00019909,2]
[349395847,1737155439714,-262.22,0.00019915,2]
[349395850,1737155439730,-262.22,0.0001992,2]
[349395853,1737155439746,-262.22,0.00019925,2]
[349395855,1737155439760,-262.22,0.0001993,2]
[349395858,1737155439776,-262.22,0.00019936,2]
[349395860,1737155439791,-262.22,0.00019941,2]
[349395863,1737155439805,-262.22,0.00019946,2]
[349395865,1737155439820,-262.22,0.00019951,2]
[349395868,1737155439835,-262.22,0.00019957,2]
[349395870,1737155439849,-5000.0,0.00019988,11]
[349395873,1737155439864,-31182.36313785,0.0002,2]
[349395876,1737155439879,-759.675,0.0002,2]
[349395878,1737155439893,-588.86681254,0.0002,2]
[349395881,1737155439908,-935.64054884,0.0002,2]
[349395883,1737155439923,-1475.5475798,0.0002,4]
[349395885,1737155439938,-830.42131204,0.0002,2]
[349395888,1737155439953,-1237.4615993,0.0002,2]
[349395891,1737155439968,-37999.999999,0.0002,2]
[349395893,1737155439984,-1188.9548068,0.00020038,2]
[349395896,1737155439999,-336.33,0.00020089,2]